bitfinex/quotes_SOLUSD_20251009
["timestamp","ask_amount","ask_price","bid_price","bid_amount"]
[1760039435864,0.68,218.51,218.44,30.06]
[1760039436051,0.68,218.5,218.44,30.06]
[1760039436251,16.01684056,218.52,218.44,30.06]
[1760039436252,0.68,218.49,218.44,30.06]
[1760039436557,0.68,218.48,218.44,30.06]
[1760039436765,16.01684056,218.52,218.44,30.06]
[1760039436766,0.68,218.47,218.44,30.06]
[1760039437775,0.68,218.5,218.45,0.69]
[1760039437948,0.68,218.5,218.44,30.06]
[1760039437949,0.68,218.49,218.44,30.06]
[1760039438364,16.01774208,218.51,218.44,30.06]
[1760039438570,0.68,218.5,218.44,30.06]
[1760039439672,52.94,218.55,218.44,30.06]
[1760039439673,16.01903976,218.49,218.44,30.06]
[1760039439858,0.68,218.48,218.41,10.87647521]
[1760039440057,0.68,218.47,218.4,32.14]
[1760039440258,0.68,218.46,218.4,32.14]
[1760039440556,21.48,218.46,218.39,10.87647522]
[1760039440752,0.68,218.45,218.39,1e-08]
[1760039441282,21.48,218.45,218.39,1e-08]
[1760039441848,4.57791613,218.44,218.39,1e-08]
[1760039442248,0.68,218.43,218.39,1e-08]
[1760039442854,4.57833531,218.42,218.39,1e-08]
[1760039443462,4.57833531,218.42,218.39,0.69000001]
[1760039443863,4.57802871,218.44,218.4,0.69]
[1760039444059,4.57728749,218.47,218.4,0.69]
[1760039444272,16.70050623,218.47,218.4,0.69]
[1760039445386,16.70050623,218.47,218.39,1e-08]
[1760039447281,39.58694372,218.47,218.39,1e-08]
[1760039449375,16.02197298,218.45,218.39,1e-08]
[1760039449867,0.67,218.44,218.39,1e-08]
[1760039450274,0.67,218.43,218.39,1e-08]
[1760039450678,16.02197298,218.45,218.4,0.66]
[1760039450861,36.82197298,218.45,218.4,0.66]
[1760039451187,36.82197298,218.45,218.39,1e-08]
[1760039451188,0.67,218.44,218.39,1e-08]
[1760039451681,5.24812571,218.43,218.39,1e-08]
[1760039451881,16.69343999,218.43,218.39,1e-08]
[1760039452086,0.67,218.42,218.39,1e-08]
[1760039453484,11.44531428,218.43,218.39,1e-08]
[1760039453681,11.44531428,218.43,218.39,0.66000001]
[1760039454488,12.11531428,218.43,218.39,0.66000001]
[1760039454692,16.69343999,218.43,218.39,1e-08]
[1760039455580,11.44531428,218.43,218.39,1e-08]
[1760039455778,11.44531428,218.43,218.39,0.66000001]
[1760039458493,16.69343999,218.43,218.39,0.66000001]
[1760039458662,16.69343999,218.43,218.39,1e-08]
[1760039458992,0.67,218.42,218.39,1e-08]
[1760039460796,4.57854493,218.41,218.39,1e-08]
[1760039460983,5.24854493,218.41,218.39,1e-08]
[1760039461181,0.67,218.4,218.39,1e-08]
[1760039462076,21.47,218.4,218.39,1e-08]
[1760039462379,20.8,218.39,218.36,0.1]
[1760039462582,32.16,218.38,218.36,0.1]
[1760039462894,4.57938361,218.37,218.36,0.1]
[1760039463196,4.57938361,218.37,218.36,1e-08]
[1760039463369,5.28938361,218.37,218.36,1e-08]
[1760039464891,37.44938361,218.37,218.36,1e-08]
[1760039476701,20.8,218.34,218.3,0.1]
[1760039476900,20.8,218.31,218.3,0.1]
[1760039477106,52.92,218.31,218.3,0.1]
[1760039477292,53.63,218.31,218.3,0.1]
[1760039478408,52.92,218.31,218.3,0.1]
[1760039478702,57.5006422,218.31,218.3,0.1]
[1760039479282,25.3806422,218.31,218.3,0.1]
[1760039479483,57.5006422,218.31,218.3,0.1]
[1760039479800,36.7006422,218.31,218.3,0.1]
[1760039479996,36.7006422,218.31,218.3,0.77]
[1760039480307,36.7006422,218.31,218.3,0.1]
[1760039480905,4.5806422,218.31,218.3,0.1]
[1760039481108,57.5006422,218.31,218.3,0.77]
[1760039484616,0.71,218.39,218.3,0.77]
[1760039484817,52.9,218.38,218.3,81.07]
[1760039484993,0.71,218.37,218.3,81.07]
[1760039485196,20.8,218.33,218.3,81.07]
[1760039485514,32.16,218.32,218.3,80.4]
[1760039485898,32.16,218.32,218.3,81.07]
[1760039486712,4.5806422,218.31,218.3,81.07]
[1760039486909,5.2906422,218.31,218.3,80.4]
[1760039487129,5.2906422,218.31,218.3,0.1]
[1760039488013,4.5806422,218.31,218.3,0.1]
[1760039492625,36.7206422,218.31,218.3,0.1]
[1760039492928,4.5806422,218.31,218.3,0.1]
[1760039493103,36.7206422,218.31,218.3,0.1]
[1760039493623,4.5806422,218.31,218.3,0.1]
[1760039493804,36.7206422,218.31,218.3,0.1]
[1760039494438,37.4306422,218.31,218.3,0.1]
[1760039494727,37.4306422,218.31,218.3,1e-08]
[1760039494900,20.8,218.29,218.28,1e-08]
[1760039495094,52.94,218.29,218.28,1e-08]
[1760039495333,53.65,218.29,218.28,1e-08]
[1760039495825,58.23106189,218.29,218.28,1e-08]
[1760039498107,57.52106189,218.29,218.28,1e-08]
[1760039498600,58.23106189,218.29,218.28,1e-08]
[1760039499528,69.68371661,218.29,218.25,1e-08]
[1760039499907,3.07113783,218.28,218.25,1e-08]
[1760039500213,4.58169156,218.26,218.25,1e-08]
[1760039500407,57.50169156,218.26,218.25,1e-08]
[1760039500802,57.25994815,218.26,218.25,1e-08]
[1760039501508,57.96994815,218.26,218.25,1e-08]
[1760039501721,58.24604815,218.26,218.25,1e-08]
[1760039502613,61.31839242,218.26,218.25,1e-08]
[1760039505017,60.60839242,218.26,218.25,1e-08]
[1760039506133,60.58839242,218.26,218.25,1e-08]
[1760039506336,60.60839242,218.26,218.25,1e-08]
[1760039506534,57.53604815,218.26,218.25,1e-08]
[1760039507614,25.41604815,218.26,218.25,0.66000001]
[1760039509531,32.14,218.34,218.27,0.66]
[1760039509732,4.58022259,218.33,218.27,0.66]
[1760039509920,32.14,218.32,218.27,0.66]
[1760039510246,4.58022259,218.33,218.27,0.66]
[1760039510405,4.58022259,218.33,218.28,10.87647521]
[1760039510611,4.58022259,218.33,218.29,0.66]
[1760039510818,4.57998747,218.35,218.3,10.87647521]
[1760039511031,36.73998747,218.35,218.31,0.66]
[1760039511210,4.57957776,218.37,218.32,10.87647521]
[1760039511413,36.73957776,218.37,218.33,0.66]
[1760039512037,32.16,218.37,218.33,0.66]
[1760039512237,4.57770656,218.45,218.34,10.87647521]
[1760039512537,32.16,218.44,218.36,10.87647521]
[1760039512737,3.07177189,218.43,218.37,0.66]
[1760039513209,4.57833531,218.42,218.37,0.66]
[1760039514339,32.82,218.41,218.34,0.66]
[1760039514545,20.8,218.38,218.31,0.66]
[1760039514716,32.16,218.37,218.31,0.66]
[1760039515135,32.82,218.37,218.31,0.66]
[1760039515337,16.02857666,218.36,218.31,0.66]
[1760039515837,16.68857666,218.36,218.31,0.66]
[1760039516025,0.66,218.35,218.31,0.66]
[1760039516223,32.18,218.34,218.31,0.66]
[1760039516429,32.84,218.34,218.28,0.66]
[1760039516843,32.18,218.34,218.28,0.66]
[1760039517635,16.03077908,218.33,218.28,0.66]
[1760039518033,16.69077908,218.33,218.28,0.66]
[1760039518737,0.66,218.32,218.26,80.3]
[1760039518942,32.16,218.31,218.26,80.96]
[1760039519245,32.16,218.31,218.27,0.66]
[1760039519950,4.58085203,218.3,218.27,0.66]
[1760039520124,36.74085203,218.3,218.28,0.66]
[1760039520447,36.74085203,218.3,218.26,80.3]
[1760039520629,36.74085203,218.3,218.28,0.66]
[1760039520828,48.19298212,218.3,218.26,80.96]
[1760039521032,0.66,218.29,218.25,1e-08]
[1760039521235,48.19298212,218.3,218.26,0.66]
[1760039522140,48.19298212,218.3,218.25,1e-08]
[1760039522141,36.74085203,218.3,218.25,1e-08]
[1760039522445,37.40085203,218.3,218.25,0.66000001]
[1760039522950,48.19298212,218.3,218.26,0.7]
[1760039523143,48.90298212,218.3,218.26,0.7]
[1760039524027,48.19298212,218.3,218.25,1e-08]
[1760039524342,0.71,218.29,218.25,1e-08]
[1760039524549,32.89,218.29,218.25,1e-08]
[1760039524752,32.89,218.29,218.25,0.70000001]
[1760039525450,32.89,218.29,218.25,1e-08]
[1760039526246,4.58127176,218.28,218.25,1e-08]
[1760039526446,4.58127176,218.28,218.25,80.30000001]
[1760039526955,5.29127176,218.28,218.25,80.30000001]
[1760039527457,16.74445116,218.28,218.25,80.30000001]
[1760039528249,16.03445116,218.28,218.25,80.30000001]
[1760039529063,4.58127176,218.28,218.26,0.7]
[1760039529935,16.03371661,218.29,218.26,81.0]
[1760039530348,4.58106189,218.29,218.26,81.0]
[1760039530553,4.58106189,218.29,218.27,0.7]
[1760039530855,4.58106189,218.29,218.28,0.7]
[1760039531952,4.58043239,218.32,218.28,0.7]
[1760039532126,4.57980306,218.35,218.29,10.87647521]
[1760039532332,4.57917391,218.38,218.31,10.87647521]
[1760039532635,4.57898975,218.39,218.33,10.87647521]
[1760039532835,4.57898975,218.39,218.34,0.7]
[1760039533153,4.57875579,218.4,218.35,10.87647521]
[1760039533363,4.57875579,218.4,218.36,0.7]
[1760039533531,4.57875579,218.4,218.37,0.7]
[1760039534082,11.4445478,218.45,218.39,10.87647521]
[1760039534355,11.4445478,218.45,218.4,0.7]
[1760039534571,11.4445478,218.45,218.41,0.7]
[1760039534930,11.4445478,218.45,218.38,10.87647521]
[1760039535252,4.57749702,218.46,218.39,0.7]
[1760039535769,16.02123958,218.46,218.39,0.7]
[1760039536283,0.71,218.48,218.39,0.7]
[1760039536284,5.28724587,218.48,218.39,0.7]
[1760039536568,4.57724587,218.48,218.39,0.7]
[1760039536739,16.01994085,218.48,218.39,5.27894148]
[1760039536942,16.01994085,218.48,218.41,10.87647521]
[1760039537142,4.57724587,218.48,218.43,10.87647521]
[1760039537353,4.57724587,218.48,218.44,0.7]
[1760039537861,4.57644061,218.52,218.45,10.87647521]
[1760039538032,4.57644061,218.52,218.47,10.87647521]
[1760039538237,4.57603075,218.53,218.48,0.7]
[1760039538449,4.57603075,218.53,218.49,0.7]
[1760039538652,4.57603075,218.53,218.5,0.7]
[1760039538858,0.2,218.54,218.51,0.7]
[1760039539047,0.2,218.54,218.52,0.7]
[1760039539248,0.2,218.54,218.53,0.7]
[1760039539758,0.2,218.54,218.53,11.57647521]
[1760039542741,4.77597838,218.54,218.5,0.7]
[1760039542942,4.77597838,218.54,218.5,32.86]
[1760039543362,0.2,218.54,218.51,11.57647521]
[1760039543661,0.2,218.54,218.51,43.73647521]
[1760039543840,0.2,218.54,218.53,10.87647521]
[1760039544252,0.2,218.54,218.53,11.57647521]
[1760039546269,0.2,218.54,218.49,0.7]
[1760039546444,0.2,218.54,218.5,43.75647521]
[1760039546861,0.2,218.54,218.51,0.7]
[1760039547071,0.2,218.54,218.53,10.87647521]
[1760039547452,0.2,218.54,218.53,11.57647521]
[1760039548171,0.2,218.54,218.53,10.87647521]
[1760039548469,0.2,218.54,218.53,11.57647521]
[1760039549981,0.2,218.54,218.53,112.48]
[1760039550271,20.8,218.51,218.41,92.44717319]
[1760039550454,0.71,218.5,218.41,80.3]
[1760039550767,20.8,218.51,218.39,32.2]
[1760039550768,0.71,218.49,218.39,32.2]
[1760039550977,0.71,218.48,218.39,32.2]
[1760039551157,0.71,218.47,218.39,32.9]
[1760039551362,0.71,218.46,218.4,10.87647521]
[1760039551559,4.57770656,218.45,218.4,10.87647521]
[1760039551757,4.57770656,218.45,218.4,11.57647521]
[1760039551947,4.5773846,218.47,218.4,10.87647521]
[1760039552276,5.28706172,218.49,218.42,10.87647521]
[1760039552654,5.28706172,218.49,218.41,0.7]
[1760039553254,16.72923298,218.49,218.41,0.7]
[1760039554867,16.72923298,218.49,218.4,10.87647521]
[1760039555069,0.72,218.48,218.39,10.87647521]
[1760039555265,0.72,218.47,218.39,43.07647521]
[1760039555454,0.72,218.46,218.39,43.07647521]
[1760039555658,0.72,218.45,218.39,43.07647521]
[1760039555972,4.57791613,218.44,218.39,123.37647521]
[1760039556161,5.29791613,218.44,218.39,123.37647521]
[1760039556756,16.01830662,218.5,218.39,123.37647521]
[1760039556963,0.72,218.43,218.39,123.37647521]
[1760039557164,0.72,218.42,218.39,112.5]
[1760039557566,0.72,218.45,218.39,112.5]
[1760039557764,0.72,218.45,218.39,113.18]
[1760039557975,0.72,218.45,218.39,112.5]
[1760039558472,0.72,218.44,218.39,112.5]
[1760039558675,0.72,218.43,218.39,80.3]
[1760039558880,0.72,218.42,218.39,80.3]
[1760039559077,5.29854493,218.41,218.28,4.58126725]
[1760039559294,0.72,218.4,218.32,0.68]
[1760039559458,0.72,218.4,218.33,32.2]
[1760039560352,4.57896423,218.39,218.33,32.2]
[1760039560584,4.57896423,218.39,218.33,32.88]
[1760039561074,16.02637482,218.39,218.33,32.88]
[1760039562286,4.57896423,218.39,218.33,32.88]
[1760039563984,5.29896423,218.39,218.33,32.88]
[1760039564274,0.72,218.38,218.33,32.2]
[1760039564456,0.72,218.37,218.31,0.68]
[1760039566380,0.72,218.37,218.31,80.3]
[1760039566570,5.27959333,218.36,218.31,80.3]
[1760039566770,0.7,218.35,218.31,80.3]
[1760039567365,0.7,218.34,218.31,80.3]
[1760039568081,0.7,218.33,218.31,80.3]
[1760039568277,0.7,218.32,218.31,80.3]
[1760039568458,5.28043239,218.32,218.31,80.3]
[1760039568658,0.7,218.35,218.31,80.3]
[1760039570389,20.8,218.37,218.31,80.3]
[1760039570688,4.58022259,218.33,218.31,80.3]
[1760039572281,5.28022259,218.33,218.31,80.3]
[1760039573091,0.7,218.32,218.27,80.3]
[1760039573391,0.7,218.32,218.27,80.99]
[1760039575581,4.5806422,218.31,218.27,80.99]
[1760039576264,4.5806422,218.31,218.28,0.69]
[1760039577566,4.58043239,218.32,218.28,0.69]
[1760039577959,16.03151337,218.32,218.27,80.3]
[1760039578166,16.73151337,218.32,218.27,80.99]
[1760039578381,16.73151337,218.32,218.27,80.3]
[1760039578582,16.73151337,218.32,218.28,0.69]
[1760039579378,16.03151337,218.32,218.28,0.69]
[1760039579776,4.58022259,218.33,218.25,1e-08]
[1760039580085,4.58022259,218.33,218.26,0.69]
[1760039580283,16.03077908,218.33,218.26,0.69]
[1760039580488,0.7,218.32,218.26,0.69]
[1760039581791,4.5806422,218.31,218.26,0.69]
[1760039581997,4.5806422,218.31,218.25,1e-08]
[1760039582183,4.5806422,218.31,218.27,0.69]
[1760039583603,0.7,218.34,218.28,0.66]
[1760039583893,23.82327915,218.47,218.28,0.66]
[1760039583894,52.94,218.4,218.29,10.87647521]
[1760039584070,0.7,218.38,218.29,91.17647521]
[1760039584276,0.7,218.37,218.29,80.3]
[1760039584490,0.7,218.36,218.29,80.3]
[1760039584680,0.7,218.35,218.29,80.3]
[1760039584883,0.7,218.34,218.26,0.66]
[1760039587101,16.03077908,218.33,218.26,0.66]
[1760039587280,16.73077908,218.33,218.26,0.66]
[1760039589220,5.28022259,218.33,218.26,0.66]
[1760039589405,5.28022259,218.33,218.26,80.96]
[1760039589703,0.7,218.32,218.26,80.3]
[1760039590003,20.8,218.3,218.25,80.30000001]
[1760039590202,32.86,218.29,218.25,1e-08]
[1760039590379,16.03445116,218.28,218.25,1e-08]
[1760039590697,16.73445116,218.28,218.25,1e-08]
[1760039590873,0.7,218.27,218.25,1e-08]
[1760039591695,16.03445116,218.28,218.25,1e-08]
[1760039592082,16.73445116,218.28,218.25,1e-08]
[1760039592388,0.7,218.27,218.25,1e-08]
[1760039592787,11.4531794,218.28,218.25,1e-08]
[1760039593009,12.1531794,218.28,218.25,1e-08]
[1760039593673,0.7,218.27,218.25,1e-08]
[1760039593885,11.4531794,218.28,218.25,1e-08]
[1760039594100,0.7,218.27,218.25,1e-08]
[1760039594284,11.4531794,218.28,218.25,1e-08]
[1760039594485,12.1531794,218.28,218.25,1e-08]
[1760039594780,14.69975437,218.42,218.26,0.66]
[1760039594981,0.7,218.35,218.26,0.66]
[1760039595287,32.18,218.34,218.26,80.96]
[1760039595490,0.7,218.33,218.27,0.66]
[1760039595682,32.9,218.36,218.27,0.66]
[1760039596198,32.2,218.37,218.28,10.87647521]
[1760039596394,32.2,218.37,218.3,10.87647521]
[1760039596590,0.7,218.38,218.31,0.66]
[1760039597287,4.57938361,218.37,218.31,0.66]
[1760039599216,5.27917829,218.38,218.31,0.66]
[1760039599503,4.57917829,218.38,218.31,0.66]
[1760039599800,4.57917829,218.38,218.32,10.87647521]
[1760039600003,4.57917829,218.38,218.33,0.66]
[1760039600189,4.57889923,218.4,218.34,10.87647521]
[1760039600392,4.57854493,218.41,218.35,0.66]
[1760039600597,16.02490727,218.41,218.35,0.66]
[1760039600793,0.7,218.4,218.35,0.66]
[1760039601000,0.7,218.39,218.34,10.87647521]
[1760039601302,0.7,218.39,218.34,11.53647521]
[1760039602306,4.57917391,218.38,218.34,10.87647521]
[1760039602489,4.57917391,218.38,218.35,0.66]
[1760039603388,11.44636234,218.41,218.35,0.66]
[1760039603587,0.7,218.4,218.35,0.66]
[1760039603790,11.44636234,218.41,218.35,0.66]
[1760039603791,0.7,218.39,218.35,0.66]
[1760039604307,0.7,218.39,218.34,11.53647521]
[1760039604805,0.7,218.38,218.32,10.87647521]
[1760039605384,16.02784264,218.37,218.31,112.48]
[1760039605584,0.7,218.36,218.27,0.66]
[1760039607491,16.02931073,218.35,218.27,0.66]
[1760039607691,16.72931073,218.35,218.27,0.66]
[1760039614515,16.72931073,218.35,218.28,10.87647521]
[1760039614814,4.57980306,218.35,218.3,10.87647521]
[1760039614988,4.57938361,218.37,218.31,0.66]
[1760039615702,5.25938361,218.37,218.31,0.66]
[1760039616690,16.70784264,218.37,218.31,0.66]
[1760039616897,16.70784264,218.37,218.3,80.3]
[1760039617112,0.68,218.36,218.3,80.3]
[1760039617504,0.68,218.35,218.3,80.3]
[1760039617704,0.68,218.34,218.3,80.3]
[1760039617911,16.02784264,218.37,218.3,80.3]
[1760039618127,0.68,218.33,218.3,80.3]
[1760039618298,0.68,218.32,218.27,80.3]
[1760039618499,38.92476071,218.37,218.27,80.3]
[1760039618699,4.58085203,218.3,218.27,80.3]
[1760039618922,4.58085203,218.3,218.27,80.96]
[1760039619802,4.5806422,218.31,218.27,80.96]
[1760039620208,5.2606422,218.31,218.27,80.96]
[1760039620417,0.68,218.3,218.27,80.3]
[1760039620903,0.68,218.29,218.27,80.3]
[1760039621222,5.2606422,218.31,218.27,80.3]
[1760039621426,0.68,218.3,218.27,80.3]
[1760039621810,4.58106189,218.29,218.27,80.3]
[1760039622307,0.68,218.28,218.27,80.3]
[1760039622609,4.58106189,218.29,218.27,80.3]
[1760039622610,4.58087198,218.3,218.27,80.96]
[1760039622918,4.58087198,218.3,218.27,80.3]
[1760039622919,16.03300207,218.3,218.27,80.3]
[1760039623115,16.71300207,218.3,218.27,80.3]
[1760039623499,0.68,218.29,218.27,80.3]
[1760039624403,4.58127176,218.28,218.27,80.3]
[1760039625798,0.71,218.37,218.28,10.87647521]
[1760039626108,0.71,218.37,218.29,32.85]
[1760039626309,4.57959333,218.36,218.3,0.67]
[1760039627703,16.02857666,218.36,218.3,0.67]
[1760039628626,16.73857666,218.36,218.3,0.67]
[1760039629933,16.73857666,218.36,218.29,32.18]
[1760039630231,0.71,218.35,218.29,32.18]
[1760039630432,0.71,218.35,218.29,32.85]
[1760039630935,0.71,218.35,218.29,113.15]
[1760039631733,4.58001282,218.34,218.29,113.15]
[1760039631933,4.58001282,218.34,218.3,0.67]
[1760039632232,5.29001282,218.34,218.3,0.67]
[1760039632926,4.58001282,218.34,218.31,0.67]
[1760039633114,4.5797899,218.36,218.32,0.67]
[1760039633315,4.57934217,218.38,218.32,80.97]
[1760039633640,0.2761,218.34,218.33,11.54647521]
[1760039633816,0.2761,218.34,218.33,16.1266978]
[1760039635252,0.2761,218.34,218.33,11.54647521]
[1760039635729,0.2761,218.34,218.33,48.3066978]
[1760039637431,0.2761,218.34,218.33,43.72647521]
[1760039637609,0.2761,218.34,218.33,11.54647521]
[1760039637807,0.2761,218.34,218.33,43.70647521]
[1760039638038,0.2761,218.34,218.33,43.03647521]
[1760039638231,0.2761,218.34,218.33,32.16]
[1760039638435,0.2761,218.34,218.32,10.87647521]
[1760039639036,4.85615141,218.34,218.32,10.87647521]
[1760039640033,4.85615141,218.34,218.32,11.54647521]
[1760039640238,0.2761,218.34,218.32,11.54647521]
[1760039640616,4.8561982,218.34,218.32,10.87647521]
[1760039641138,0.71,218.33,218.32,80.3]
[1760039641431,4.8561982,218.34,218.32,80.3]
[1760039641818,5.5661982,218.34,218.32,80.3]
[1760039642140,0.71,218.33,218.32,80.3]
[1760039642437,4.8561982,218.34,218.32,80.3]
[1760039642646,0.68,218.33,218.32,80.3]
[1760039643231,4.8561982,218.34,218.32,80.3]
[1760039643442,5.5361982,218.34,218.32,80.3]
[1760039645322,4.8561982,218.34,218.32,80.3]
[1760039645512,0.68,218.33,218.32,80.3]
[1760039646138,5.26022259,218.33,218.32,80.3]
[1760039647944,16.71077908,218.33,218.29,80.3]
[1760039648145,0.2761,218.34,218.25,0.65000001]
[1760039648146,4.5806422,218.31,218.25,80.30000001]
[1760039648442,0.68,218.3,218.25,1e-08]
[1760039648927,0.68,218.29,218.25,1e-08]
[1760039649431,0.68,218.28,218.25,1e-08]
[1760039650238,5.26148165,218.27,218.25,1e-08]
[1760039651530,0.68,218.26,218.25,1e-08]
[1760039653134,5.26169156,218.26,218.25,1e-08]
[1760039655116,4.58123798,218.29,218.25,0.65000001]
[1760039655321,4.58123798,218.29,218.26,0.65]
[1760039655921,4.58123798,218.29,218.25,1e-08]
[1760039656116,4.58123798,218.29,218.25,0.65000001]
[1760039656337,16.0338927,218.29,218.25,0.65000001]
[1760039656637,4.58123798,218.29,218.26,0.65]
[1760039656838,4.58083048,218.31,218.27,0.65]
[1760039657046,4.58083048,218.31,218.25,80.30000001]
[1760039657232,4.58083048,218.31,218.26,0.65]
[1760039657426,4.58083048,218.31,218.27,0.65]
[1760039657634,5.53693048,218.31,218.27,0.65]
[1760039658131,4.85693048,218.31,218.27,0.65]
[1760039658330,5.53693048,218.31,218.27,0.65]
[1760039658541,4.85693048,218.31,218.27,0.65]
[1760039658838,0.2761,218.31,218.28,0.65]
[1760039659618,0.2761,218.31,218.29,10.87647521]
[1760039659831,0.2761,218.31,218.3,11.52647521]
[1760039660029,0.2761,218.31,218.3,91.82647521]
[1760039660351,5.5367422,218.31,218.26,80.3]
[1760039660649,16.03371661,218.29,218.26,80.3]
[1760039660846,0.68,218.28,218.26,80.3]
[1760039661428,16.03371661,218.29,218.26,80.3]
[1760039662052,4.58106189,218.29,218.26,80.95]
[1760039663251,4.58085203,218.3,218.26,80.95]
[1760039664289,0.2761,218.31,218.27,0.65]
[1760039664443,0.2761,218.31,218.28,0.65]
[1760039664749,0.2761,218.31,218.29,0.65]
[1760039665334,0.2761,218.31,218.3,0.65]
[1760039669451,0.2761,218.31,218.3,91.82647521]
[1760039669658,4.57962,218.36,218.32,10.87647521]
[1760039669852,4.57962,218.36,218.33,0.65]
[1760039670153,4.57962,218.36,218.34,0.65]
[1760039670336,11.44780924,218.39,218.35,0.65]
[1760039670337,4.57917391,218.38,218.35,0.65]
[1760039670538,5.25917391,218.38,218.34,10.87647521]
[1760039670740,0.68,218.37,218.33,10.87647521]
[1760039671465,0.68,218.39,218.33,11.52647521]
[1760039671953,0.68,218.39,218.34,0.65]
[1760039672157,0.68,218.39,218.35,0.65]
[1760039672665,4.57917391,218.38,218.35,0.65]
[1760039672839,4.57884732,218.4,218.36,0.68]
[1760039673259,5.22884732,218.4,218.36,0.68]
[1760039673563,4.57884732,218.4,218.36,0.68]
[1760039673755,4.57884732,218.4,218.37,0.68]
[1760039674062,11.44677109,218.41,218.35,32.18]
[1760039674063,16.02531602,218.41,218.35,32.86]
[1760039674441,16.02531602,218.41,218.36,10.87647521]
[1760039674643,4.57854493,218.41,218.37,0.68]
[1760039675055,4.57854493,218.41,218.38,0.68]
[1760039675855,5.22854493,218.41,218.36,10.87647521]
[1760039676062,4.57854493,218.41,218.37,0.68]
[1760039676262,4.57824048,218.43,218.38,0.68]
[1760039676446,4.57749702,218.46,218.39,10.87647521]
[1760039676647,16.67123958,218.46,218.4,0.68]
[1760039677358,16.67123958,218.46,218.41,10.87647521]
[1760039677565,16.67123958,218.46,218.41,11.55647521]
[1760039677956,16.02123958,218.46,218.42,0.68]
[1760039678267,16.02123958,218.46,218.43,0.68]
[1760039679242,11.44374256,218.46,218.41,43.71647521]
[1760039679472,11.44374256,218.46,218.42,0.68]
[1760039680075,11.44374256,218.46,218.41,43.03647521]
[1760039680289,4.77598317,218.54,218.43,10.87647521]
[1760039680572,4.77603202,218.53,218.45,10.87647521]
[1760039680875,0.2,218.53,218.46,0.68]
[1760039681075,0.2,218.53,218.47,43.07647521]
[1760039681369,0.2,218.53,218.49,10.87647521]
[1760039681585,0.2,218.53,218.5,32.2]
[1760039681744,0.2,218.53,218.5,32.88]
[1760039681944,0.2,218.53,218.52,10.87647521]
[1760039682452,0.2,218.53,218.52,11.55647521]
[1760039687452,0.2,218.53,218.52,91.58037521]
[1760039690059,0.2,218.53,218.52,123.74037521]
[1760039690384,0.2,218.53,218.52,254.64037521]
[1760039690598,0.2,218.53,218.52,259.21661537]
[1760039691497,0.2,218.53,218.52,222.48037521]
[1760039691793,0.2,218.53,218.52,259.21661537]
[1760039694376,0.2,218.53,218.52,259.19661537]
[1760039699194,0.2,218.59,218.58,10.87647521]
[1760039699407,0.2,218.59,218.58,122.22037521]
[1760039699776,0.87,218.59,218.58,122.22037521]
[1760039700195,5.44477469,218.59,218.58,79.2239]
[1760039700809,0.2,218.59,218.58,90.10037521]
[1760039701305,0.2,218.59,218.58,95.34535919]
[1760039703076,0.2,218.59,218.58,226.24535919]
[1760039703791,0.2,218.59,218.58,221.00037521]
[1760039704103,0.2,218.59,218.58,253.12037521]
[1760039704312,0.2,218.59,218.58,257.69535919]